[Event "Titled Tuesday Blitz March 15 Late 2022"]
[White "Bluebaum, Matthias"]
[Black "Grischuk, Alexander"]
[WhiteFideId "24651516"]
[BlackFideId "4126025"]
[WhiteElo "2550"]
[BlackElo "2762"]
[Result "1/2-1/2"]
[Round "09"]
[TimeControl "180+1"]
[Date "2022.03.15"]
[WhiteClock "0:00:07"]
[BlackClock "0:00:06"]

1. b3 {[%clk 0:02:59]}  e5 {[%clk 0:02:58]} 2. Bb2 {[%clk 0:02:58]}  Nc6 {[%clk 0:02:58]} 3. e3 {[%clk 0:02:59]}  d5 {[%clk 0:02:58]} 4. Bb5 {[%clk 0:02:59]}  Bd6 {[%clk 0:02:58]} 5. f4 {[%clk 0:02:59]}  f6 {[%clk 0:02:59]} 6. Qh5+ {[%clk 0:02:59]}  g6 {[%clk 0:02:59]} 7. Qh4 {[%clk 0:03:00]}  exf4 {[%clk 0:02:15]} 8. Nc3 {[%clk 0:02:59]}  a6 {[%clk 0:02:11]} 9. Bxc6+ {[%clk 0:02:45]}  bxc6 {[%clk 0:02:12]} 10. exf4 {[%clk 0:02:45]}  d4 {[%clk 0:02:06]} 11. Ne4 {[%clk 0:02:38]}  c5 {[%clk 0:02:06]} 12. Nxd6+ {[%clk 0:02:34]}  Qxd6 {[%clk 0:02:03]} 13. O-O-O {[%clk 0:02:33]}  Ne7 {[%clk 0:02:03]} 14. Nf3 {[%clk 0:02:25]}  Bb7 {[%clk 0:01:47]} 15. Rde1 {[%clk 0:02:10]}  O-O-O {[%clk 0:01:46]} 16. Rhf1 {[%clk 0:01:55]}  Nd5 {[%clk 0:01:44]} 17. f5 {[%clk 0:01:37]}  g5 {[%clk 0:01:36]} 18. Qg3 {[%clk 0:01:35]}  Rde8 {[%clk 0:01:31]} 19. Kb1 {[%clk 0:01:13]}  a5 {[%clk 0:01:22]} 20. Ba3 {[%clk 0:00:58]}  a4 {[%clk 0:01:18]} 21. Re6 {[%clk 0:00:56]}  Rxe6 {[%clk 0:01:17]} 22. fxe6 {[%clk 0:00:57]}  Nf4 {[%clk 0:01:15]} 23. Re1 {[%clk 0:00:49]}  Re8 {[%clk 0:01:12]} 24. e7 {[%clk 0:00:35]}  d3 {[%clk 0:00:48]} 25. c4 {[%clk 0:00:29]}  Rxe7 {[%clk 0:00:39]} 26. Rxe7 {[%clk 0:00:30]}  Qxe7 {[%clk 0:00:39]} 27. Qf2 {[%clk 0:00:31]}  Qe2 {[%clk 0:00:38]} 28. Qxc5 {[%clk 0:00:10]}  Bxf3 {[%clk 0:00:10]} 29. Qf8+ {[%clk 0:00:10]}  Kd7 {[%clk 0:00:09]} 30. Qf7+ {[%clk 0:00:10]}  Kc6 {[%clk 0:00:08]} 31. gxf3 {[%clk 0:00:04]}  Qd1+ {[%clk 0:00:08]} 32. Kb2 {[%clk 0:00:04]}  Qxd2+ {[%clk 0:00:07]} 33. Kb1 {[%clk 0:00:05]}  Qd1+ {[%clk 0:00:07]} 34. Kb2 {[%clk 0:00:06]}  Qc2+ {[%clk 0:00:07]} 35. Ka1 {[%clk 0:00:06]}  Qc3+ {[%clk 0:00:07]} 36. Kb1 {[%clk 0:00:05]}  Qe5 {[%clk 0:00:05]} 37. Bc1 {[%clk 0:00:03]}  axb3 {[%clk 0:00:04]} 38. axb3 {[%clk 0:00:04]}  Ne2 {[%clk 0:00:04]} 39. Bd2 {[%clk 0:00:05]}  Kb7 {[%clk 0:00:03]} 40. Qd7 {[%clk 0:00:04]}  Nd4 {[%clk 0:00:03]} 41. Ka2 {[%clk 0:00:03]}  Nc6 {[%clk 0:00:03]} 42. Qd5 {[%clk 0:00:03]}  Qxd5 {[%clk 0:00:03]} 43. cxd5 {[%clk 0:00:04]}  Ne7 {[%clk 0:00:03]} 44. b4 {[%clk 0:00:05]}  Nxd5 {[%clk 0:00:03]} 45. Kb3 {[%clk 0:00:06]}  Kc6 {[%clk 0:00:03]} 46. Kc4 {[%clk 0:00:06]}  Nb6+ {[%clk 0:00:03]} 47. Kxd3 {[%clk 0:00:07]}  Kd5 {[%clk 0:00:04]} 48. f4 {[%clk 0:00:06]}  g4 {[%clk 0:00:04]} 49. f5 {[%clk 0:00:07]}  c6 {[%clk 0:00:04]} 50. Bc3 {[%clk 0:00:07]}  Nd7 {[%clk 0:00:04]} 51. Ke3 {[%clk 0:00:08]}  h5 {[%clk 0:00:03]} 52. Kf4 {[%clk 0:00:08]}  Ne5 {[%clk 0:00:03]} 53. Bxe5 {[%clk 0:00:06]}  fxe5+ {[%clk 0:00:04]} 54. Kg5 {[%clk 0:00:06]}  e4 {[%clk 0:00:04]} 55. f6 {[%clk 0:00:07]}  e3 {[%clk 0:00:03]} 56. f7 {[%clk 0:00:08]}  e2 {[%clk 0:00:04]} 57. f8=Q {[%clk 0:00:09]}  e1=Q {[%clk 0:00:04]} 58. Qc5+ {[%clk 0:00:09]}  Ke6 {[%clk 0:00:04]} 59. Qxc6+ {[%clk 0:00:09]}  Ke7 {[%clk 0:00:04]} 60. Qc5+ {[%clk 0:00:09]}  Kd7 {[%clk 0:00:04]} 61. Kxh5 {[%clk 0:00:09]}  Qe2 {[%clk 0:00:03]} 62. Qd4+ {[%clk 0:00:07]}  Kc7 {[%clk 0:00:03]} 63. Qf4+ {[%clk 0:00:08]}  Kb7 {[%clk 0:00:03]} 64. Kh4 {[%clk 0:00:07]}  Ka6 {[%clk 0:00:04]} 65. Kg3 {[%clk 0:00:07]}  Kb5 {[%clk 0:00:04]} 66. Qxg4 {[%clk 0:00:07]}  Qe1+ {[%clk 0:00:04]} 67. Kh3 {[%clk 0:00:08]}  Qe3+ {[%clk 0:00:04]} 68. Kh4 {[%clk 0:00:08]}  Qe1+ {[%clk 0:00:05]} 69. Kh5 {[%clk 0:00:08]}  Qe8+ {[%clk 0:00:05]} 70. Qg6 {[%clk 0:00:07]}  Qh8+ {[%clk 0:00:05]} 71. Qh6 {[%clk 0:00:07]}  Qe8+ {[%clk 0:00:06]} 72. Kh4 {[%clk 0:00:08]}  Qe1+ {[%clk 0:00:06]} 73. Kh3 {[%clk 0:00:08]}  Qf1+ {[%clk 0:00:05]} 74. Kg3 {[%clk 0:00:09]}  Qg1+ {[%clk 0:00:06]} 75. Kh3 {[%clk 0:00:07]}  Qf1+ {[%clk 0:00:06]} 76. Kh4 {[%clk 0:00:07]}  Qf2+ {[%clk 0:00:06]} 77. Kg4 {[%clk 0:00:08]}  Qe2+ {[%clk 0:00:06]} 78. Kf5 {[%clk 0:00:08]}  Qd3+ {[%clk 0:00:06]} 79. Ke5 {[%clk 0:00:05]}  Qe2+ {[%clk 0:00:06]} 80. Kf6 {[%clk 0:00:06]}  Qf3+ {[%clk 0:00:05]} 81. Kg7 {[%clk 0:00:06]}  Qb7+ {[%clk 0:00:05]} 82. Kh8 {[%clk 0:00:05]}  Qb8+ {[%clk 0:00:05]} 83. Kh7 {[%clk 0:00:05]}  Qc7+ {[%clk 0:00:06]} 84. Kg6 {[%clk 0:00:05]}  Qd6+ {[%clk 0:00:06]} 85. Kh5 {[%clk 0:00:06]}  Qxh2+ {[%clk 0:00:06]} 86. Kg5 {[%clk 0:00:06]}  Qd2+ {[%clk 0:00:06]} 87. Kg6 {[%clk 0:00:05]}  Qd6+ {[%clk 0:00:06]} 88. Kh7 {[%clk 0:00:06]}  Qe7+ {[%clk 0:00:06]} 89. Qg7 {[%clk 0:00:06]}  Qxg7+ {[%clk 0:00:06]} 90. Kxg7 {[%clk 0:00:07]}  Kxb4 {[%clk 0:00:06]} 1/2-1/2


[Site "https://www.chess.com"]

[Event "Titled Tuesday Blitz March 15 Late 2022"]
[White "Bryakin, Mikhail"]
[Black "Hess, Robert"]
[WhiteFideId "4165314"]
[BlackFideId "2022036"]
[WhiteElo "2417"]
[BlackElo "2557"]
[Result "1-0"]
[Round "09"]
[TimeControl "180+1"]
[Date "2022.03.15"]
[WhiteClock "0:00:37"]
[BlackClock "0:00:04"]

1. e4 {[%clk 0:03:00]}  g6 {[%clk 0:02:59]} 2. d4 {[%clk 0:03:00]}  Bg7 {[%clk 0:03:00]} 3. Nf3 {[%clk 0:03:00]}  a6 {[%clk 0:03:00]} 4. a4 {[%clk 0:03:00]}  d6 {[%clk 0:03:00]} 5. Nc3 {[%clk 0:03:00]}  e6 {[%clk 0:03:00]} 6. Be2 {[%clk 0:03:00]}  Ne7 {[%clk 0:03:00]} 7. h3 {[%clk 0:03:00]}  Nd7 {[%clk 0:03:01]} 8. O-O {[%clk 0:03:00]}  b6 {[%clk 0:03:01]} 9. Be3 {[%clk 0:02:59]}  Bb7 {[%clk 0:03:00]} 10. Qd2 {[%clk 0:02:58]}  h6 {[%clk 0:02:59]} 11. d5 {[%clk 0:02:51]}  e5 {[%clk 0:02:56]} 12. Ne1 {[%clk 0:02:49]}  f5 {[%clk 0:02:50]} 13. f3 {[%clk 0:02:49]}  f4 {[%clk 0:02:46]} 14. Bf2 {[%clk 0:02:49]}  g5 {[%clk 0:02:47]} 15. Nd3 {[%clk 0:02:47]}  h5 {[%clk 0:02:44]} 16. Rfb1 {[%clk 0:02:46]}  Nf6 {[%clk 0:02:41]} 17. a5 {[%clk 0:02:43]}  b5 {[%clk 0:02:19]} 18. Kf1 {[%clk 0:02:40]}  Qd7 {[%clk 0:02:09]} 19. Ke1 {[%clk 0:02:35]}  g4 {[%clk 0:02:09]} 20. Bf1 {[%clk 0:02:34]}  c6 {[%clk 0:01:48]} 21. Nb4 {[%clk 0:02:26]}  cxd5 {[%clk 0:01:18]} 22. Nbxd5 {[%clk 0:02:25]}  Nexd5 {[%clk 0:01:17]} 23. Nxd5 {[%clk 0:02:25]}  Nxd5 {[%clk 0:01:15]} 24. exd5 {[%clk 0:02:25]}  Rc8 {[%clk 0:01:09]} 25. Rd1 {[%clk 0:02:16]}  Bf6 {[%clk 0:01:02]} 26. c3 {[%clk 0:02:15]}  Rg8 {[%clk 0:00:58]} 27. Qd3 {[%clk 0:02:14]}  Rg7 {[%clk 0:00:44]} 28. Qe4 {[%clk 0:02:14]}  Kf7 {[%clk 0:00:39]} 29. Rd2 {[%clk 0:02:11]}  Rcg8 {[%clk 0:00:32]} 30. c4 {[%clk 0:02:00]}  bxc4 {[%clk 0:00:30]} 31. Qxc4 {[%clk 0:02:01]}  gxf3 {[%clk 0:00:30]} 32. gxf3 {[%clk 0:02:01]}  Qe7 {[%clk 0:00:27]} 33. Ra3 {[%clk 0:01:49]}  Bh4 {[%clk 0:00:27]} 34. Rb3 {[%clk 0:01:49]}  Bxf2+ {[%clk 0:00:24]} 35. Rxf2 {[%clk 0:01:49]}  Rc8 {[%clk 0:00:23]} 36. Qe4 {[%clk 0:01:40]}  Kg8 {[%clk 0:00:18]} 37. Rc3 {[%clk 0:01:32]}  Rxc3 {[%clk 0:00:16]} 38. bxc3 {[%clk 0:01:32]}  Qc7 {[%clk 0:00:16]} 39. Qb4 {[%clk 0:01:30]}  Bxd5 {[%clk 0:00:15]} 40. Bxa6 {[%clk 0:01:30]}  Rg3 {[%clk 0:00:12]} 41. Be2 {[%clk 0:01:29]}  Rxh3 {[%clk 0:00:06]} 42. a6 {[%clk 0:01:29]}  Rh1+ {[%clk 0:00:06]} 43. Rf1 {[%clk 0:01:30]}  Rh2 {[%clk 0:00:05]} 44. Rf2 {[%clk 0:01:29]}  Rh1+ {[%clk 0:00:05]} 45. Rf1 {[%clk 0:01:30]}  Rh2 {[%clk 0:00:06]} 46. Qa3 {[%clk 0:01:19]}  Qc5 {[%clk 0:00:05]} 47. Qxc5 {[%clk 0:01:11]}  dxc5 {[%clk 0:00:06]} 48. a7 {[%clk 0:01:11]}  Kh7 {[%clk 0:00:05]} 49. Rg1 {[%clk 0:01:07]}  Kh6 {[%clk 0:00:04]} 50. Rg8 {[%clk 0:01:05]}  Rh1+ {[%clk 0:00:05]} 51. Bf1 {[%clk 0:01:04]}  Bxf3 {[%clk 0:00:04]} 52. Kf2 {[%clk 0:00:53]}  Bc6 {[%clk 0:00:03]} 53. Bg2 {[%clk 0:00:45]}  Bxg2 {[%clk 0:00:01]} 54. Kxg2 {[%clk 0:00:44]}  Ra1 {[%clk 0:00:02]} 55. a8=Q {[%clk 0:00:44]}  Rxa8 {[%clk 0:00:03]} 56. Rxa8 {[%clk 0:00:44]}  Kg5 {[%clk 0:00:04]} 57. Rc8 {[%clk 0:00:42]}  Kg4 {[%clk 0:00:02]} 58. Rg8+ {[%clk 0:00:37]}  Kf5 {[%clk 0:00:02]} 59. Rc8 {[%clk 0:00:37]}  Kg4 {[%clk 0:00:02]} 60. Rxc5 {[%clk 0:00:38]}  e4 {[%clk 0:00:02]} 61. Rc8 {[%clk 0:00:36]}  h4 {[%clk 0:00:01]} 62. Rg8+ {[%clk 0:00:36]}  Kf5 {[%clk 0:00:02]} 63. c4 {[%clk 0:00:36]}  e3 {[%clk 0:00:02]} 64. Kf3 {[%clk 0:00:36]}  h3 {[%clk 0:00:03]} 65. Rh8 {[%clk 0:00:37]}  Ke5 {[%clk 0:00:02]} 66. Rxh3 {[%clk 0:00:37]}  Kd4 {[%clk 0:00:03]} 67. Kxf4 {[%clk 0:00:37]}  e2 {[%clk 0:00:04]} 68. Re3 {[%clk 0:00:37]}  Kxc4 {[%clk 0:00:04]} 69. Rxe2 {[%clk 0:00:37]} 1-0


[Site "https://www.chess.com"]

[Event "Titled Tuesday Blitz March 15 Late 2022"]
[White "Chiku-Ratte, Olivier-Kenta"]
[Black "Al-Tarboush, Ward"]
[WhiteFideId "2614782"]
[BlackFideId "7601450"]
[WhiteElo "2324"]
[BlackElo "2276"]
[Result "0-1"]
[Round "09"]
[TimeControl "180+1"]
[Date "2022.03.15"]
[WhiteClock "0:02:12"]
[BlackClock "0:02:51"]

1. Nf3 {[%clk 0:03:00]}  d5 {[%clk 0:02:59]} 2. d4 {[%clk 0:03:00]}  Nf6 {[%clk 0:02:59]} 3. c4 {[%clk 0:03:00]}  c6 {[%clk 0:03:00]} 4. Nc3 {[%clk 0:03:00]}  dxc4 {[%clk 0:03:00]} 5. a4 {[%clk 0:03:00]}  Bf5 {[%clk 0:03:00]} 6. e3 {[%clk 0:03:00]}  e6 {[%clk 0:02:59]} 7. Bxc4 {[%clk 0:03:01]}  Nbd7 {[%clk 0:02:59]} 8. O-O {[%clk 0:03:00]}  Bb4 {[%clk 0:03:00]} 9. Qe2 {[%clk 0:02:58]}  Bg6 {[%clk 0:03:00]} 10. Rd1 {[%clk 0:02:57]}  O-O {[%clk 0:02:58]} 11. Bd2 {[%clk 0:02:54]}  Qe7 {[%clk 0:02:58]} 12. a5 {[%clk 0:02:50]}  e5 {[%clk 0:02:57]} 13. dxe5 {[%clk 0:02:47]}  Nxe5 {[%clk 0:02:58]} 14. Nxe5 {[%clk 0:02:47]}  Qxe5 {[%clk 0:02:59]} 15. Ra4 {[%clk 0:02:45]}  Bxa5 {[%clk 0:02:58]} 16. Be1 {[%clk 0:02:30]}  Bc7 {[%clk 0:02:55]} 17. f4 {[%clk 0:02:28]}  Qe7 {[%clk 0:02:53]} 18. Raa1 {[%clk 0:02:26]}  Bh5 {[%clk 0:02:51]} 19. Qf2 {[%clk 0:02:16]}  Bxd1 {[%clk 0:02:51]} 20. Nxd1 {[%clk 0:02:16]}  Bb6 {[%clk 0:02:52]} 21. Bd3 {[%clk 0:02:12]}  Rad8 {[%clk 0:02:51]} 0-1


[Site "https://www.chess.com"]

[Event "Titled Tuesday Blitz March 15 Late 2022"]
[White "Costachi, Mihnea"]
[Black "Lazavik, Denis"]
[WhiteFideId "1217518"]
[BlackFideId "13515110"]
[WhiteElo "2464"]
[BlackElo "2437"]
[Result "0-1"]
[Round "09"]
[TimeControl "180+1"]
[Date "2022.03.15"]
[WhiteClock "0:00:25"]
[BlackClock "0:00:21"]

1. d4 {[%clk 0:02:59]}  f5 {[%clk 0:02:58]} 2. Bg5 {[%clk 0:02:58]}  h6 {[%clk 0:02:54]} 3. Bh4 {[%clk 0:02:57]}  g5 {[%clk 0:02:54]} 4. Bg3 {[%clk 0:02:57]}  Nf6 {[%clk 0:02:51]} 5. e3 {[%clk 0:02:58]}  c5 {[%clk 0:02:44]} 6. Nc3 {[%clk 0:02:53]}  Qb6 {[%clk 0:02:36]} 7. d5 {[%clk 0:02:37]}  d6 {[%clk 0:02:33]} 8. h4 {[%clk 0:02:35]}  g4 {[%clk 0:02:24]} 9. a3 {[%clk 0:02:28]}  Nbd7 {[%clk 0:02:22]} 10. Bd3 {[%clk 0:02:26]}  Ne5 {[%clk 0:02:19]} 11. Bxe5 {[%clk 0:02:25]}  dxe5 {[%clk 0:02:20]} 12. Bb5+ {[%clk 0:02:23]}  Bd7 {[%clk 0:02:13]} 13. Bxd7+ {[%clk 0:02:23]}  Nxd7 {[%clk 0:02:14]} 14. Nge2 {[%clk 0:02:20]}  Bg7 {[%clk 0:02:13]} 15. Ng3 {[%clk 0:02:17]}  O-O {[%clk 0:02:13]} 16. O-O {[%clk 0:02:17]}  Qxb2 {[%clk 0:02:04]} 17. Na4 {[%clk 0:01:50]}  Qb5 {[%clk 0:02:02]} 18. c3 {[%clk 0:01:47]}  e4 {[%clk 0:01:52]} 19. Rb1 {[%clk 0:01:47]}  Qa6 {[%clk 0:01:52]} 20. Qb3 {[%clk 0:01:47]}  Kh7 {[%clk 0:01:49]} 21. c4 {[%clk 0:01:42]}  Rab8 {[%clk 0:01:43]} 22. Nc3 {[%clk 0:01:41]}  Qf6 {[%clk 0:01:37]} 23. Nce2 {[%clk 0:01:39]}  Qxh4 {[%clk 0:01:32]} 24. Qa4 {[%clk 0:01:39]}  Ne5 {[%clk 0:01:30]} 25. Qxa7 {[%clk 0:01:39]}  Nf3+ {[%clk 0:01:09]} 26. gxf3 {[%clk 0:01:39]}  gxf3 {[%clk 0:01:10]} 27. Nf4 {[%clk 0:00:35]}  Be5 {[%clk 0:01:08]} 28. Rxb7 {[%clk 0:00:34]}  Rxb7 {[%clk 0:01:08]} 29. Qxb7 {[%clk 0:00:35]}  Bxf4 {[%clk 0:00:54]} 30. exf4 {[%clk 0:00:36]}  Rg8 {[%clk 0:00:24]} 31. Qb2 {[%clk 0:00:28]}  Qh3 {[%clk 0:00:22]} 32. Qe5 {[%clk 0:00:25]}  Qg2# {[%clk 0:00:21]} 0-1


[Site "https://www.chess.com"]

[Event "Titled Tuesday Blitz March 15 Late 2022"]
[White "Demchenko, Anton"]
[Black "Jaferian, Koosha"]
[WhiteFideId "4160258"]
[BlackFideId "12507440"]
[WhiteElo "2539"]
[BlackElo "2030"]
[Result "1-0"]
[Round "09"]
[TimeControl "180+1"]
[Date "2022.03.15"]
[WhiteClock "0:00:05"]
[BlackClock "0:00:06"]

1. e4 {[%clk 0:02:59]}  c6 {[%clk 0:03:00]} 2. d4 {[%clk 0:02:59]}  d5 {[%clk 0:03:00]} 3. e5 {[%clk 0:03:00]}  Bf5 {[%clk 0:03:00]} 4. Bd3 {[%clk 0:03:01]}  Bxd3 {[%clk 0:03:00]} 5. Qxd3 {[%clk 0:03:02]}  Qa5+ {[%clk 0:02:59]} 6. c3 {[%clk 0:03:02]}  e6 {[%clk 0:02:59]} 7. Ne2 {[%clk 0:03:02]}  Nd7 {[%clk 0:02:58]} 8. O-O {[%clk 0:03:02]}  Ne7 {[%clk 0:02:58]} 9. Nd2 {[%clk 0:03:00]}  Nf5 {[%clk 0:02:58]} 10. Ng3 {[%clk 0:02:55]}  g6 {[%clk 0:02:46]} 11. Nf3 {[%clk 0:02:47]}  Be7 {[%clk 0:02:45]} 12. a4 {[%clk 0:02:41]}  Qd8 {[%clk 0:02:41]} 13. a5 {[%clk 0:02:40]}  a6 {[%clk 0:02:41]} 14. b4 {[%clk 0:02:32]}  Qc7 {[%clk 0:02:35]} 15. Nxf5 {[%clk 0:02:14]}  gxf5 {[%clk 0:02:35]} 16. Bg5 {[%clk 0:02:13]}  Bxg5 {[%clk 0:02:32]} 17. Nxg5 {[%clk 0:02:14]}  h6 {[%clk 0:02:32]} 18. Nh3 {[%clk 0:02:14]}  O-O-O {[%clk 0:02:33]} 19. Nf4 {[%clk 0:02:13]}  Rhg8 {[%clk 0:02:27]} 20. g3 {[%clk 0:02:13]}  Rg5 {[%clk 0:02:20]} 21. Rfc1 {[%clk 0:02:02]}  Kb8 {[%clk 0:02:17]} 22. c4 {[%clk 0:01:50]}  dxc4 {[%clk 0:02:16]} 23. Qxc4 {[%clk 0:01:50]}  Nf8 {[%clk 0:01:56]} 24. b5 {[%clk 0:01:25]}  axb5 {[%clk 0:01:52]} 25. Qc3 {[%clk 0:01:25]}  Ng6 {[%clk 0:01:38]} 26. Nxg6 {[%clk 0:00:58]}  Rxg6 {[%clk 0:01:38]} 27. a6 {[%clk 0:00:58]}  Rgg8 {[%clk 0:01:20]} 28. Ra2 {[%clk 0:00:49]}  Qb6 {[%clk 0:01:13]} 29. axb7 {[%clk 0:00:48]}  Kxb7 {[%clk 0:01:11]} 30. Qe3 {[%clk 0:00:23]}  Ra8 {[%clk 0:00:52]} 31. Rac2 {[%clk 0:00:22]}  Rgc8 {[%clk 0:00:46]} 32. Qxh6 {[%clk 0:00:22]}  Qxd4 {[%clk 0:00:45]} 33. Rd2 {[%clk 0:00:20]}  Qxe5 {[%clk 0:00:41]} 34. Qh5 {[%clk 0:00:09]}  Rc7 {[%clk 0:00:40]} 35. Re2 {[%clk 0:00:08]}  Qd4 {[%clk 0:00:37]} 36. Ree1 {[%clk 0:00:07]}  Ra2 {[%clk 0:00:35]} 37. Qf3 {[%clk 0:00:07]}  Qd5 {[%clk 0:00:33]} 38. Qc3 {[%clk 0:00:07]}  Qd2 {[%clk 0:00:27]} 39. Qf3 {[%clk 0:00:06]}  Qd5 {[%clk 0:00:27]} 40. Qe3 {[%clk 0:00:06]}  Rd7 {[%clk 0:00:23]} 41. Rb1 {[%clk 0:00:06]}  Ra4 {[%clk 0:00:21]} 42. h4 {[%clk 0:00:05]}  Re4 {[%clk 0:00:21]} 43. Qc3 {[%clk 0:00:04]}  Rxe1+ {[%clk 0:00:21]} 44. Rxe1 {[%clk 0:00:05]}  Qd4 {[%clk 0:00:16]} 45. Qf3 {[%clk 0:00:05]}  b4 {[%clk 0:00:11]} 46. h5 {[%clk 0:00:05]}  Qd5 {[%clk 0:00:12]} 47. Qf4 {[%clk 0:00:05]}  b3 {[%clk 0:00:11]} 48. h6 {[%clk 0:00:05]}  Rd8 {[%clk 0:00:10]} 49. Rb1 {[%clk 0:00:04]}  c5 {[%clk 0:00:10]} 50. h7 {[%clk 0:00:04]}  c4 {[%clk 0:00:06]} 51. Qh6 {[%clk 0:00:02]}  Qe5 {[%clk 0:00:06]} 52. Qh5 {[%clk 0:00:02]}  Rf8 {[%clk 0:00:05]} 53. Qh6 {[%clk 0:00:02]}  b2 {[%clk 0:00:05]} 54. Qxf8 {[%clk 0:00:02]}  Qe4 {[%clk 0:00:03]} 55. Qxf7+ {[%clk 0:00:02]}  Kc6 {[%clk 0:00:02]} 56. Rxb2 {[%clk 0:00:03]}  Qe1+ {[%clk 0:00:03]} 57. Kg2 {[%clk 0:00:03]}  Qe4+ {[%clk 0:00:03]} 58. Kh2 {[%clk 0:00:04]}  c3 {[%clk 0:00:03]} 59. Ra2 {[%clk 0:00:03]}  c2 {[%clk 0:00:04]} 60. Rxc2+ {[%clk 0:00:04]}  Qxc2 {[%clk 0:00:05]} 61. Qxe6+ {[%clk 0:00:04]}  Kc5 {[%clk 0:00:06]} 62. Qe3+ {[%clk 0:00:05]}  Kd5 {[%clk 0:00:06]} 63. h8=Q {[%clk 0:00:05]} 1-0


[Site "https://www.chess.com"]

[Event "Titled Tuesday Blitz March 15 Late 2022"]
[White "Ezat, Mohamed"]
[Black "Badelka, Olga"]
[WhiteFideId "10600906"]
[BlackFideId "13509926"]
[WhiteElo "2386"]
[BlackElo "2165"]
[Result "0-1"]
[Round "09"]
[TimeControl "180+1"]
[Date "2022.03.16"]
[WhiteClock "0:00:19"]
[BlackClock "0:00:21"]

1. d4 {[%clk 0:02:53]}  Nf6 {[%clk 0:02:58]} 2. c4 {[%clk 0:02:52]}  c5 {[%clk 0:02:58]} 3. d5 {[%clk 0:02:51]}  b5 {[%clk 0:02:58]} 4. cxb5 {[%clk 0:02:51]}  a6 {[%clk 0:02:58]} 5. Nc3 {[%clk 0:02:50]}  g6 {[%clk 0:02:54]} 6. e4 {[%clk 0:02:50]}  d6 {[%clk 0:02:46]} 7. Nf3 {[%clk 0:02:46]}  Bg7 {[%clk 0:02:46]} 8. Be2 {[%clk 0:02:45]}  O-O {[%clk 0:02:45]} 9. O-O {[%clk 0:02:45]}  axb5 {[%clk 0:02:45]} 10. Bxb5 {[%clk 0:02:45]}  Qa5 {[%clk 0:02:42]} 11. Re1 {[%clk 0:02:43]}  Ba6 {[%clk 0:02:39]} 12. Bxa6 {[%clk 0:02:42]}  Nxa6 {[%clk 0:02:32]} 13. e5 {[%clk 0:02:42]}  Nd7 {[%clk 0:02:28]} 14. Bf4 {[%clk 0:02:39]}  Qb6 {[%clk 0:02:03]} 15. Qd2 {[%clk 0:02:36]}  Nc7 {[%clk 0:01:52]} 16. h3 {[%clk 0:02:25]}  Rfe8 {[%clk 0:01:51]} 17. Re2 {[%clk 0:02:22]}  Nb5 {[%clk 0:01:46]} 18. Nxb5 {[%clk 0:02:16]}  Qxb5 {[%clk 0:01:47]} 19. a3 {[%clk 0:02:16]}  c4 {[%clk 0:01:33]} 20. Rae1 {[%clk 0:02:14]}  dxe5 {[%clk 0:01:27]} 21. Nxe5 {[%clk 0:02:12]}  Nc5 {[%clk 0:01:18]} 22. Nc6 {[%clk 0:02:03]}  Nd3 {[%clk 0:01:15]} 23. Nxe7+ {[%clk 0:01:58]}  Kh8 {[%clk 0:01:11]} 24. Bh6 {[%clk 0:01:44]}  Nxe1 {[%clk 0:01:08]} 25. Bxg7+ {[%clk 0:01:43]}  Kxg7 {[%clk 0:01:07]} 26. Qxe1 {[%clk 0:01:40]}  f6 {[%clk 0:00:57]} 27. d6 {[%clk 0:01:37]}  Rad8 {[%clk 0:00:49]} 28. Re6 {[%clk 0:01:13]}  Kf7 {[%clk 0:00:39]} 29. Qe4 {[%clk 0:00:57]}  Qc5 {[%clk 0:00:35]} 30. Qb7 {[%clk 0:00:36]}  Kxe6 {[%clk 0:00:34]} 31. Nc6 {[%clk 0:00:30]}  Rxd6 {[%clk 0:00:29]} 32. Nb4 {[%clk 0:00:19]}  Rd1+ {[%clk 0:00:27]} 33. Kh2 {[%clk 0:00:20]}  Qd6+ {[%clk 0:00:25]} 34. g3 {[%clk 0:00:20]}  Rd2 {[%clk 0:00:23]} 35. Qe4+ {[%clk 0:00:19]}  Kf7 {[%clk 0:00:23]} 36. Qxc4+ {[%clk 0:00:18]}  Kg7 {[%clk 0:00:22]} 37. Kg2 {[%clk 0:00:19]}  Ree2 {[%clk 0:00:21]} 0-1


[Site "https://www.chess.com"]

[Event "Titled Tuesday Blitz March 15 Late 2022"]
[White "Gatterer, Florian"]
[Black "Yedidia, Daniel"]
[WhiteFideId "811688"]
[BlackFideId "30905907"]
[WhiteElo "2218"]
[BlackElo "2506"]
[Result "1/2-1/2"]
[Round "09"]
[TimeControl "180+1"]
[Date "2022.03.16"]
[WhiteClock "0:00:10"]
[BlackClock "0:00:39"]

1. Nf3 {[%clk 0:02:57]}  Nf6 {[%clk 0:03:00]} 2. c4 {[%clk 0:02:57]}  b6 {[%clk 0:02:57]} 3. g3 {[%clk 0:02:56]}  Bb7 {[%clk 0:02:57]} 4. Bg2 {[%clk 0:02:57]}  e6 {[%clk 0:02:58]} 5. O-O {[%clk 0:02:57]}  Be7 {[%clk 0:02:57]} 6. d4 {[%clk 0:02:55]}  O-O {[%clk 0:02:56]} 7. Nc3 {[%clk 0:02:55]}  d5 {[%clk 0:02:55]} 8. Ne5 {[%clk 0:02:55]}  Nbd7 {[%clk 0:02:56]} 9. Qa4 {[%clk 0:02:51]}  c5 {[%clk 0:02:42]} 10. Nxd7 {[%clk 0:02:47]}  Qxd7 {[%clk 0:02:37]} 11. Qxd7 {[%clk 0:02:46]}  Nxd7 {[%clk 0:02:38]} 12. dxc5 {[%clk 0:02:42]}  Nxc5 {[%clk 0:02:29]} 13. cxd5 {[%clk 0:02:42]}  exd5 {[%clk 0:02:29]} 14. Nxd5 {[%clk 0:02:42]}  Bxd5 {[%clk 0:02:29]} 15. Bxd5 {[%clk 0:02:41]}  Rad8 {[%clk 0:02:30]} 16. Bf3 {[%clk 0:02:37]}  Bf6 {[%clk 0:02:24]} 17. Rb1 {[%clk 0:02:36]}  Ne6 {[%clk 0:02:16]} 18. e3 {[%clk 0:02:22]}  Nc5 {[%clk 0:02:16]} 19. b3 {[%clk 0:02:22]}  Nd3 {[%clk 0:02:14]} 20. Ba3 {[%clk 0:02:18]}  Rfe8 {[%clk 0:02:14]} 21. Rfd1 {[%clk 0:02:16]}  h6 {[%clk 0:02:07]} 22. h4 {[%clk 0:02:15]}  g6 {[%clk 0:02:01]} 23. Kg2 {[%clk 0:02:02]}  Kg7 {[%clk 0:01:59]} 24. Be2 {[%clk 0:01:52]}  Ne5 {[%clk 0:01:58]} 25. Bb5 {[%clk 0:01:50]}  Rxd1 {[%clk 0:01:55]} 26. Rxd1 {[%clk 0:01:48]}  Rc8 {[%clk 0:01:55]} 27. Rd2 {[%clk 0:01:36]}  a6 {[%clk 0:01:52]} 28. Be2 {[%clk 0:01:34]}  b5 {[%clk 0:01:51]} 29. f4 {[%clk 0:01:30]}  Nc6 {[%clk 0:01:47]} 30. Bf3 {[%clk 0:00:56]}  Ne7 {[%clk 0:01:30]} 31. e4 {[%clk 0:00:50]}  Bc3 {[%clk 0:01:22]} 32. Rc2 {[%clk 0:00:49]}  b4 {[%clk 0:01:22]} 33. Bc1 {[%clk 0:00:41]}  Nc6 {[%clk 0:01:21]} 34. Be3 {[%clk 0:00:37]}  Rd8 {[%clk 0:01:21]} 35. Be2 {[%clk 0:00:32]}  a5 {[%clk 0:01:14]} 36. e5 {[%clk 0:00:29]}  h5 {[%clk 0:01:11]} 37. Bb5 {[%clk 0:00:28]}  Nd4 {[%clk 0:01:06]} 38. Bxd4 {[%clk 0:00:27]}  Rxd4 {[%clk 0:01:07]} 39. Be2 {[%clk 0:00:23]}  f6 {[%clk 0:01:03]} 40. exf6+ {[%clk 0:00:21]}  Kxf6 {[%clk 0:01:03]} 41. Kf3 {[%clk 0:00:21]}  Rd6 {[%clk 0:01:01]} 42. Ke3 {[%clk 0:00:19]}  Re6+ {[%clk 0:00:58]} 43. Kf3 {[%clk 0:00:18]}  Bd4 {[%clk 0:00:59]} 44. Bc4 {[%clk 0:00:15]}  Re3+ {[%clk 0:00:57]} 45. Kg2 {[%clk 0:00:15]}  Kf5 {[%clk 0:00:52]} 46. Re2 {[%clk 0:00:15]}  Ke4 {[%clk 0:00:41]} 47. Rxe3+ {[%clk 0:00:14]}  Bxe3 {[%clk 0:00:42]} 48. Bf7 {[%clk 0:00:14]}  Kf5 {[%clk 0:00:42]} 49. Be8 {[%clk 0:00:14]}  Kf6 {[%clk 0:00:39]} 50. Kf3 {[%clk 0:00:14]}  Bd4 {[%clk 0:00:39]} 51. Ke4 {[%clk 0:00:13]}  Bf2 {[%clk 0:00:37]} 52. Kf3 {[%clk 0:00:13]}  Be1 {[%clk 0:00:37]} 53. Bc6 {[%clk 0:00:11]}  Ke6 {[%clk 0:00:36]} 54. Be4 {[%clk 0:00:11]}  Kf6 {[%clk 0:00:37]} 55. Bd3 {[%clk 0:00:09]}  Kg7 {[%clk 0:00:37]} 56. Be4 {[%clk 0:00:09]}  Kf6 {[%clk 0:00:37]} 57. Bd3 {[%clk 0:00:10]}  Kg7 {[%clk 0:00:38]} 58. Be4 {[%clk 0:00:10]}  Kf6 {[%clk 0:00:39]} 1/2-1/2


[Site "https://www.chess.com"]